lending/lending_fUSD_20250719
["ID","MTS","AMOUNT","RATE_DAILY","PERIOD"]
[373327398,1752947458545,-400.0,0.00019397,2]
[373327399,1752947458555,-480.0,0.00019397,2]
[373327400,1752947458565,-360.32562599,0.00019397,2]
[373327401,1752947458574,-480.0,0.00019397,2]
[373327402,1752947458585,-480.0,0.00019397,2]
[373327403,1752947458595,-530.45475532,0.00019397,2]
[373327404,1752947458604,-360.0,0.00019397,2]
[373327405,1752947458614,-480.0,0.00019397,2]
[373327406,1752947458624,-581.97,0.00019397,2]
[373327407,1752947458634,-627.93,0.00019397,2]
[373327408,1752947458644,-480.0,0.00019397,2]
[373327409,1752947458654,-1032.82,0.00019397,2]
[373327410,1752947458664,-480.0,0.00019397,2]
[373327411,1752947458674,-480.0,0.00019397,2]
[373327412,1752947458683,-480.0,0.00019397,2]
[373327413,1752947458692,-480.0,0.00019397,2]
[373327414,1752947458702,-480.0,0.00019397,2]
[373327415,1752947458713,-480.0,0.00019397,2]
[373327416,1752947458723,-480.0,0.00019397,2]
[373327417,1752947458732,-480.0,0.00019397,2]
[373327418,1752947458743,-480.0,0.00019397,2]
[373327419,1752947458752,-511.8,0.00019397,2]
[373327420,1752947458762,-480.0,0.00019397,2]
[373327421,1752947458772,-480.0,0.00019397,2]
[373327422,1752947458782,-480.0,0.00019397,2]
[373327423,1752947458792,-480.0,0.00019397,2]
[373327424,1752947458801,-480.0,0.00019397,2]
[373327425,1752947458811,-732.98,0.00019397,2]
[373327426,1752947458820,-440.0,0.00019397,2]
[373327427,1752947458830,-607.71036578,0.00019397,2]
[373327428,1752947458839,-624.81438021,0.00019397,2]
[373327429,1752947458849,-480.0,0.00019397,2]
[373327430,1752947458858,-480.0,0.00019397,2]
[373327431,1752947458868,-480.0,0.00019397,2]
[373327432,1752947458877,-480.0,0.00019397,2]
[373327433,1752947458887,-705.62,0.00019397,2]
[373327434,1752947458896,-480.0,0.00019397,2]
[373327435,1752947458906,-339.81,0.00019397,2]
[373327436,1752947458915,-480.0,0.00019397,2]
[373327437,1752947458925,-480.0,0.00019397,2]
[373327438,1752947458936,-401.22032293,0.00019397,2]
[373327439,1752947458949,-199.57,0.00019397,2]
[373327440,1752947458959,-480.0,0.00019397,2]
[373327441,1752947458968,-480.0,0.00019397,2]
[373327442,1752947458977,-480.0,0.00019397,2]
[373327443,1752947458990,-480.0,0.00019397,2]
[373327444,1752947459000,-480.0,0.00019397,2]
[373327445,1752947459011,-480.0,0.00019397,2]
[373327446,1752947459023,-480.0,0.00019397,2]
[373327447,1752947459033,-340.0,0.00019397,2]
[373327448,1752947459042,-480.0,0.00019397,2]
[373327449,1752947459243,-480.0,0.00019397,2]
[373327450,1752947459254,-480.0,0.00019397,2]
[373327451,1752947459265,-588.9,0.00019397,2]
[373327452,1752947459275,-480.0,0.00019397,2]
[373327453,1752947459284,-480.0,0.00019397,2]
[373327454,1752947459293,-480.0,0.00019397,2]
[373327455,1752947459303,-480.0,0.00019397,2]
[373327456,1752947459312,-480.0,0.00019397,2]
[373327457,1752947459321,-480.0,0.00019397,2]
[373327458,1752947459330,-480.0,0.00019397,2]
[373327459,1752947459339,-480.0,0.00019397,2]
[373327460,1752947459349,-480.0,0.00019397,2]
[373327461,1752947459358,-288.04007582,0.00019397,2]
[373327462,1752947459368,-646.05,0.00019397,2]
[373327463,1752947459377,-480.0,0.00019397,2]
[373327464,1752947459386,-480.0,0.00019397,2]
[373327465,1752947459396,-480.0,0.00019397,2]
[373327466,1752947459405,-480.0,0.00019397,2]
[373327467,1752947459415,-573.36,0.00019397,2]
[373327468,1752947459425,-480.0,0.00019397,2]
[373327469,1752947459435,-567.1,0.00019397,2]
[373327470,1752947459444,-480.0,0.00019397,2]
[373327471,1752947459454,-480.0,0.00019397,2]
[373327472,1752947459464,-368.47,0.00019397,2]
[373327473,1752947459473,-1135.62,0.00019397,2]
[373327474,1752947459483,-480.0,0.00019397,2]
[373327475,1752947459495,-480.0,0.00019397,2]
[373327476,1752947459504,-513.46,0.00019397,2]
[373327477,1752947459513,-480.0,0.00019397,2]
[373327478,1752947459523,-548.62,0.00019397,2]
[373327479,1752947459532,-480.0,0.00019397,2]
[373327480,1752947459541,-480.0,0.00019397,2]
[373327481,1752947459551,-355.27,0.00019397,2]
[373327482,1752947459561,-408.28,0.00019397,2]
[373327483,1752947459571,-480.0,0.00019397,2]
[373327484,1752947459580,-480.0,0.00019397,2]
[373327485,1752947459589,-466.51,0.00019397,2]
[373327486,1752947459599,-480.0,0.00019397,2]
[373327487,1752947459608,-480.0,0.00019397,2]
[373327488,1752947459618,-480.0,0.00019397,2]
[373327489,1752947459628,-480.0,0.00019397,2]
[373327490,1752947459637,-480.0,0.00019397,2]
[373327491,1752947459647,-480.0,0.00019397,2]
[373327492,1752947459657,-480.0,0.00019397,2]
[373327493,1752947459667,-480.0,0.00019397,2]
[373327494,1752947459677,-480.0,0.00019397,2]
[373327495,1752947459687,-480.0,0.00019397,2]
[373327496,1752947459696,-364.74,0.00019397,2]
[373327497,1752947459706,-480.0,0.00019397,2]
[373327498,1752947459715,-480.0,0.00019397,2]
[373327499,1752947459725,-297.11,0.00019397,2]
[373327500,1752947459734,-340.0,0.00019397,2]
[373327501,1752947459745,-375.07,0.00019397,2]
[373327502,1752947459755,-480.0,0.00019397,2]
[373327503,1752947459764,-480.0,0.00019397,2]
[373327504,1752947459773,-480.0,0.00019397,2]
[373327505,1752947459783,-480.0,0.00019397,2]
[373327506,1752947459793,-480.0,0.00019397,2]
[373327507,1752947459802,-480.0,0.00019397,2]
[373327508,1752947459812,-480.0,0.00019397,2]
[373327509,1752947459823,-480.0,0.00019397,2]
[373327510,1752947459832,-512.86,0.00019397,2]
[373327511,1752947459842,-480.0,0.00019397,2]
[373327512,1752947459852,-480.0,0.00019397,2]
[373327513,1752947459861,-480.0,0.00019397,2]
[373327514,1752947459871,-480.0,0.00019397,2]
[373327515,1752947459881,-480.0,0.00019397,2]
[373327516,1752947459891,-335.76933508,0.00019397,2]
[373327517,1752947459900,-480.0,0.00019397,2]
[373327518,1752947459909,-480.0,0.00019397,2]
[373327519,1752947459919,-480.0,0.00019397,2]
[373327520,1752947459929,-480.0,0.00019397,2]
[373327521,1752947459940,-480.0,0.00019397,2]
[373327522,1752947459951,-480.0,0.00019397,2]
[373327523,1752947459960,-480.0,0.00019397,2]
[373327524,1752947459970,-480.0,0.00019397,2]
[373327525,1752947459979,-480.0,0.00019397,2]
[373327526,1752947459991,-480.0,0.00019397,2]
[373327527,1752947460001,-480.0,0.00019397,2]
[373327528,1752947460012,-480.0,0.00019397,2]
[373327529,1752947460022,-480.0,0.00019397,2]
[373327530,1752947460031,-554.83273484,0.00019397,2]
[373327531,1752947460041,-480.0,0.00019397,2]
[373327532,1752947460052,-360.0,0.00019397,2]
[373327533,1752947460063,-480.0,0.00019397,2]
[373327534,1752947460072,-480.0,0.00019397,2]
[373327535,1752947460082,-480.0,0.00019397,2]
[373327536,1752947460092,-684.65,0.00019397,2]
[373327537,1752947460102,-480.0,0.00019397,2]
[373327538,1752947460111,-277.72994457,0.00019397,2]
[373327539,1752947460121,-233.37327427,0.00019397,2]
[373327540,1752947460130,-480.0,0.00019397,2]
[373327541,1752947460139,-480.0,0.00019397,2]
[373327542,1752947460149,-845.48,0.00019397,2]
[373327543,1752947460158,-480.0,0.00019397,2]
[373327544,1752947460167,-480.0,0.00019397,2]
[373327545,1752947460176,-480.0,0.00019397,2]
[373327546,1752947460187,-480.0,0.00019397,2]
[373327547,1752947460197,-487.4,0.00019397,2]
[373327548,1752947460207,-480.0,0.00019397,2]
[373327549,1752947460218,-609.16562369,0.00019397,2]
[373327550,1752947460228,-480.0,0.00019397,2]
[373327551,1752947460240,-480.0,0.00019397,2]
[373327552,1752947460250,-737.96,0.00019397,2]
[373327553,1752947460260,-480.0,0.00019397,2]
[373327554,1752947460269,-378.82789769,0.00019397,2]
[373327555,1752947460279,-480.0,0.00019397,2]
[373327556,1752947460288,-480.0,0.00019397,2]
[373327557,1752947460298,-480.0,0.00019397,2]
[373327558,1752947460307,-480.0,0.00019397,2]
[373327559,1752947460316,-480.0,0.00019397,2]
[373327560,1752947460326,-480.0,0.00019397,2]
[373327561,1752947460335,-480.0,0.00019397,2]
[373327562,1752947460345,-480.0,0.00019397,2]
[373327563,1752947460354,-320.0,0.00019397,2]
[373327564,1752947460363,-360.0,0.00019397,2]
[373327565,1752947460375,-493.38,0.00019397,2]
[373327566,1752947460384,-480.0,0.00019397,2]
[373327567,1752947460394,-273.72,0.00019397,2]
[373327568,1752947460404,-480.0,0.00019397,2]
[373327569,1752947460414,-293.79,0.00019397,2]
[373327570,1752947460424,-480.0,0.00019397,2]
[373327571,1752947460433,-543.1735307,0.00019397,2]
[373327572,1752947460443,-480.0,0.00019397,2]
[373327573,1752947460453,-480.0,0.00019397,2]
[373327574,1752947460462,-480.0,0.00019397,2]
[373327575,1752947460472,-480.0,0.00019397,2]
[373327576,1752947460481,-480.0,0.00019397,2]
[373327577,1752947460493,-480.0,0.00019397,2]
[373327578,1752947460502,-1027.52,0.00019397,2]
[373327579,1752947460511,-480.0,0.00019397,2]
[373327580,1752947460520,-480.0,0.00019397,2]
[373327581,1752947460530,-280.0,0.00019397,2]
[373327582,1752947460539,-480.0,0.00019397,2]
[373327583,1752947460549,-1665.8,0.00019397,2]
[373327584,1752947460558,-480.0,0.00019397,2]
[373327585,1752947460568,-684.14,0.00019397,2]
[373327586,1752947460578,-480.0,0.00019397,2]
[373327587,1752947460588,-480.0,0.00019397,2]
[373327588,1752947460598,-360.0,0.00019397,2]
[373327589,1752947460608,-480.0,0.00019397,2]
[373327590,1752947460617,-480.0,0.00019397,2]
[373327591,1752947460626,-480.0,0.00019397,2]
[373327592,1752947460637,-866.32,0.00019397,2]
[373327593,1752947460647,-1613.96,0.00019397,2]
[373327594,1752947460656,-480.0,0.00019397,2]
[373327595,1752947460666,-610.03,0.00019397,2]
[373327596,1752947460677,-579.97,0.00019397,2]
[373327597,1752947460687,-480.0,0.00019397,2]
[373327598,1752947460697,-340.0,0.00019397,2]
[373327599,1752947460707,-480.0,0.00019397,2]
[373327600,1752947460716,-480.0,0.00019397,2]
[373327601,1752947460725,-480.0,0.00019397,2]
[373327602,1752947460735,-653.05,0.00019397,2]
[373327603,1752947460747,-480.0,0.00019397,2]
[373327604,1752947460757,-1511.88,0.00019397,2]
[373327605,1752947460766,-480.0,0.00019397,2]
[373327606,1752947460775,-1760.29,0.00019397,2]
[373327607,1752947460786,-480.0,0.00019397,2]
[373327608,1752947460795,-592.14,0.00019397,2]
[373327609,1752947460805,-480.0,0.00019397,2]
[373327610,1752947460816,-485.59507648,0.00019397,2]
[373327611,1752947460826,-480.0,0.00019397,2]
[373327612,1752947460835,-480.0,0.00019397,2]
[373327613,1752947460844,-361.66,0.00019397,2]
[373327614,1752947460854,-480.0,0.00019397,2]
[373327615,1752947460864,-649.53,0.00019397,2]
[373327616,1752947460874,-480.0,0.00019397,2]
[373327617,1752947460884,-548.64,0.00019397,2]
[373327618,1752947460893,-784.63,0.00019397,2]
[373327619,1752947460902,-415.03317749,0.00019397,2]
[373327620,1752947460912,-769.17,0.00019397,2]
[373327621,1752947460922,-480.0,0.00019397,2]
[373327622,1752947460932,-480.0,0.00019397,2]
[373327623,1752947460947,-624.03,0.00019397,2]
[373327624,1752947460956,-480.0,0.00019397,2]
[373327625,1752947460967,-480.0,0.00019397,2]
[373327626,1752947460976,-566.36,0.00019397,2]
[373327627,1752947460989,-480.0,0.00019397,2]
[373327628,1752947460999,-480.0,0.00019397,2]
[373327629,1752947461010,-480.0,0.00019397,2]
[373327630,1752947461021,-565.68,0.00019397,2]
[373327631,1752947461030,-1541.23,0.00019397,2]
[373327632,1752947461040,-480.0,0.00019397,2]
[373327633,1752947461049,-480.0,0.00019397,2]
[373327634,1752947461059,-335.88287583,0.00019397,2]
[373327635,1752947461068,-1966.63,0.00019397,2]
[373327636,1752947461077,-1061.566029,0.00019397,2]
[373327637,1752947461087,-1071.078396,0.00019397,2]
[373327638,1752947461096,-455.93,0.00019397,2]
[373327639,1752947461106,-1544.9,0.00019397,2]
[373327640,1752947461116,-480.0,0.00019397,2]
[373327641,1752947461125,-360.0,0.00019397,2]
[373327642,1752947461135,-1964.37,0.00019397,2]
[373327643,1752947461145,-480.0,0.00019397,2]
[373327644,1752947461154,-827.24,0.00019397,2]
[373327645,1752947461163,-4021.3,0.00019397,2]
[373327646,1752947461173,-977.88,0.00019397,2]
[373327647,1752947461182,-280.0,0.00019397,2]
[373327648,1752947461192,-517.42,0.00019397,2]
[373327649,1752947461202,-480.0,0.00019397,2]
[373327650,1752947461213,-480.0,0.00019397,2]
[373327651,1752947461225,-752.96,0.00019397,2]
[373327652,1752947461234,-480.0,0.00019397,2]
[373327653,1752947461245,-830.46,0.00019397,2]
[373327654,1752947461255,-499.4,0.00019397,2]
[373327655,1752947461264,-839.21,0.00019397,2]
[373327656,1752947461273,-881.13,0.00019397,2]
[373327657,1752947461283,-480.0,0.00019397,2]
[373327658,1752947461292,-507.57,0.00019397,2]
[373327659,1752947461302,-480.0,0.00019397,2]
[373327660,1752947461311,-1377.35,0.00019397,2]
[373327661,1752947461321,-799.51,0.00019397,2]
[373327662,1752947461330,-2449.77,0.00019397,2]
[373327663,1752947461339,-771.35,0.00019397,2]
[373327664,1752947461350,-480.0,0.00019397,2]
[373327665,1752947461359,-480.0,0.00019397,2]
[373327666,1752947461369,-480.0,0.00019397,2]
[373327667,1752947461379,-480.0,0.00019397,2]
[373327668,1752947461389,-480.0,0.00019397,2]
[373327669,1752947461399,-480.0,0.00019397,2]
[373327670,1752947461409,-2751.77,0.00019397,2]
[373327671,1752947461419,-556.56,0.00019397,2]
[373327672,1752947461428,-499.43,0.00019397,2]
[373327673,1752947461437,-3635.27,0.00019397,2]
[373327674,1752947461447,-712.0,0.00019397,2]
[373327675,1752947461456,-480.0,0.00019397,2]
[373327676,1752947461466,-707.84,0.00019397,2]
[373327677,1752947461476,-360.0,0.00019397,2]
[373327678,1752947461487,-555.4,0.00019397,2]
[373327679,1752947461498,-505.86,0.00019397,2]
[373327680,1752947461507,-480.0,0.00019397,2]
[373327681,1752947461517,-657.33,0.00019397,2]
[373327682,1752947461527,-626.32,0.00019397,2]
[373327683,1752947461536,-530.66,0.00019397,2]
[373327684,1752947461546,-181.1918524,0.00019397,2]
[373327685,1752947461555,-659.38,0.00019397,2]
[373327686,1752947461565,-891.68,0.00019397,2]
[373327687,1752947461574,-1132.469178,0.00019397,2]
[373327688,1752947461584,-480.0,0.00019397,2]
[373327689,1752947461594,-480.0,0.00019397,2]
[373327690,1752947461603,-480.0,0.00019397,2]
[373327691,1752947461613,-651.47,0.00019397,2]
[373327692,1752947461623,-664.87,0.00019397,2]
[373327693,1752947461633,-480.0,0.00019397,2]
[373327694,1752947461644,-511.33,0.00019397,2]
[373327695,1752947461653,-480.0,0.00019397,2]
[373327696,1752947461664,-1573.49,0.00019397,2]
[373327697,1752947461675,-1090.26,0.00019397,2]
[373327698,1752947461744,-1091.37,0.00019397,2]
[373327699,1752947461754,-360.0,0.00019397,2]
[373327700,1752947461763,-603.04,0.00019397,2]
[373327701,1752947461773,-3159.4,0.00019397,2]
[373327702,1752947461782,-480.0,0.00019397,2]
[373327703,1752947461791,-704.05,0.00019397,2]
[373327704,1752947461801,-480.0,0.00019397,2]
[373327705,1752947461810,-713.41,0.00019397,2]
[373327706,1752947461820,-480.0,0.00019397,2]
[373327707,1752947461830,-480.0,0.00019397,2]
[373327708,1752947461839,-566.08,0.00019397,2]
[373327709,1752947461849,-480.0,0.00019397,2]
[373327710,1752947461858,-480.0,0.00019397,2]
[373327711,1752947461867,-656.68,0.00019397,2]
[373327712,1752947461877,-620.64,0.00019397,2]
[373327713,1752947461887,-380.0,0.00019397,2]
[373327714,1752947461897,-2150.51,0.00019397,2]
[373327715,1752947461906,-480.0,0.00019397,2]
[373327716,1752947461916,-480.0,0.00019397,2]
[373327717,1752947461926,-968.85,0.00019397,2]
[373327718,1752947461936,-1450.72,0.00019397,2]
[373327719,1752947461954,-480.0,0.00019397,2]
[373327720,1752947461967,-480.0,0.00019397,2]
[373327721,1752947461976,-480.0,0.00019397,2]
[373327722,1752947461986,-914.06,0.00019397,2]
[373327723,1752947461996,-400.0,0.00019397,2]
[373327724,1752947462005,-480.0,0.00019397,2]
[373327725,1752947462014,-528.66,0.00019397,2]
[373327726,1752947462024,-1429.57,0.00019397,2]
[373327727,1752947462033,-714.08,0.00019397,2]
[373327728,1752947462042,-738.22,0.00019397,2]
[373327729,1752947462051,-649.1,0.00019397,2]
[373327730,1752947462060,-480.0,0.00019397,2]
[373327731,1752947462069,-1323.57,0.00019397,2]
[373327732,1752947462079,-480.0,0.00019397,2]
[373327733,1752947462088,-480.0,0.00019397,2]
[373327734,1752947462097,-480.0,0.00019397,2]
[373327735,1752947462107,-480.0,0.00019397,2]
[373327736,1752947462116,-480.0,0.00019397,2]
[373327737,1752947462126,-1052.89,0.00019397,2]
[373327738,1752947462135,-1000.0,0.00019397,2]
[373327739,1752947462146,-480.0,0.00019397,2]
[373327740,1752947462155,-480.0,0.00019397,2]
[373327741,1752947462166,-448.60746448,0.00019397,2]
[373327742,1752947462175,-480.0,0.00019397,2]
[373327743,1752947462185,-675.43,0.00019397,2]
[373327744,1752947462194,-480.0,0.00019397,2]
[373327745,1752947462204,-480.0,0.00019397,2]
[373327746,1752947462213,-480.0,0.00019397,2]
[373327747,1752947462224,-480.0,0.00019397,2]
[373327748,1752947462234,-493.0,0.00019397,2]
[373327749,1752947462245,-1925.77,0.00019397,2]
[373327750,1752947462255,-480.0,0.00019397,2]
[373327751,1752947462264,-480.0,0.00019397,2]
[373327752,1752947462274,-480.0,0.00019397,2]
[373327753,1752947462283,-2367.09,0.00019397,2]
[373327754,1752947462292,-1097.63,0.00019397,2]
[373327755,1752947462301,-480.0,0.00019397,2]
[373327756,1752947462310,-944.49,0.00019397,2]
[373327757,1752947462320,-480.0,0.00019397,2]
[373327758,1752947462329,-480.0,0.00019397,2]
[373327759,1752947462338,-480.0,0.00019397,2]
[373327760,1752947462347,-480.0,0.00019397,2]
[373327761,1752947462356,-887.51,0.00019397,2]
[373327762,1752947462365,-1347.08,0.00019397,2]
[373327763,1752947462374,-480.0,0.00019397,2]
[373327764,1752947462382,-480.0,0.00019397,2]
[373327765,1752947462391,-480.0,0.00019397,2]
[373327766,1752947462400,-480.0,0.00019397,2]
[373327767,1752947462410,-480.0,0.00019397,2]
[373327768,1752947462419,-364.12747455,0.00019397,2]
[373327769,1752947462428,-480.0,0.00019397,2]
[373327770,1752947462438,-480.0,0.00019397,2]
[373327771,1752947462447,-1573.99,0.00019397,2]
[373327772,1752947462458,-237.68,0.00019397,2]
[373327773,1752947462467,-1810.63,0.00019397,2]
[373327774,1752947462477,-686.5,0.00019397,2]
[373327775,1752947462488,-3417.91,0.00019397,2]
[373327776,1752947462498,-480.0,0.00019397,2]
[373327777,1752947462507,-1003.56,0.00019397,2]
[373327778,1752947462515,-877.98,0.00019397,2]
[373327779,1752947462525,-480.0,0.00019397,2]
[373327780,1752947462534,-480.0,0.00019397,2]
[373327781,1752947462544,-480.0,0.00019397,2]
[373327782,1752947462553,-625.41,0.00019397,2]
[373327783,1752947462563,-480.0,0.00019397,2]
[373327784,1752947462574,-697.26,0.00019397,2]
[373327785,1752947462583,-484.73,0.00019397,2]
[373327786,1752947462594,-18779.77,0.00019397,2]
[373327787,1752947462604,-275.6540266,0.00019397,2]
[373327788,1752947462613,-480.0,0.00019397,2]
[373327789,1752947462623,-1128.18,0.00019397,2]
[373327790,1752947462633,-480.0,0.00019397,2]
[373327791,1752947462643,-480.0,0.00019397,2]
[373327792,1752947462652,-480.0,0.00019397,2]
[373327793,1752947462662,-480.0,0.00019397,2]
[373327794,1752947462671,-480.0,0.00019397,2]
[373327795,1752947462680,-694.15,0.00019397,2]
[373327796,1752947462689,-622.71,0.00019397,2]
[373327797,1752947462699,-480.0,0.00019397,2]
[373327798,1752947462709,-480.0,0.00019397,2]
[373327799,1752947462719,-2992.01,0.00019397,2]
[373327800,1752947462728,-480.0,0.00019397,2]
[373327801,1752947462738,-480.0,0.00019397,2]
[373327802,1752947462747,-671.5,0.00019397,2]
[373327803,1752947462757,-480.0,0.00019397,2]
[373327804,1752947462766,-320.0,0.00019397,2]
[373327805,1752947462775,-512.56,0.00019397,2]
[373327806,1752947462785,-3330.84,0.00019397,2]
[373327807,1752947462794,-480.0,0.00019397,2]
[373327808,1752947462803,-894.92,0.00019397,2]
[373327809,1752947462812,-480.0,0.00019397,2]
[373327810,1752947462822,-669.69,0.00019397,2]
[373327811,1752947462831,-480.0,0.00019397,2]
[373327812,1752947462841,-480.0,0.00019397,2]
[373327813,1752947462850,-530.32,0.00019397,2]
[373327814,1752947462859,-565.91,0.00019397,2]
[373327815,1752947462869,-480.0,0.00019397,2]
[373327816,1752947462878,-480.0,0.00019397,2]
[373327817,1752947462887,-483.19,0.00019397,2]
[373327818,1752947462897,-5190.67,0.00019397,2]
[373327819,1752947462906,-480.0,0.00019397,2]
[373327820,1752947462915,-480.0,0.00019397,2]
[373327821,1752947462926,-480.0,0.00019397,2]
[373327822,1752947462935,-480.0,0.00019397,2]
[373327823,1752947462949,-480.0,0.00019397,2]
[373327824,1752947462959,-360.0,0.00019397,2]
[373327825,1752947462970,-576.34,0.00019397,2]
[373327826,1752947462980,-480.0,0.00019397,2]
[373327827,1752947462991,-541.67,0.00019397,2]
[373327828,1752947463000,-871.01,0.00019397,2]
[373327829,1752947463009,-670.84,0.00019397,2]
[373327830,1752947463022,-420.0,0.00019397,2]
[373327831,1752947463032,-582.58,0.00019397,2]
[373327832,1752947463042,-480.0,0.00019397,2]
[373327833,1752947463052,-480.0,0.00019397,2]
[373327834,1752947463062,-1471.9,0.00019397,2]
[373327835,1752947463071,-506.73,0.00019397,2]
[373327836,1752947463083,-1209.75,0.00019397,2]
[373327837,1752947463093,-480.0,0.00019397,2]
[373327838,1752947463103,-480.0,0.00019397,2]
[373327839,1752947463112,-480.0,0.00019397,2]
[373327840,1752947463122,-480.0,0.00019397,2]
[373327841,1752947463132,-480.0,0.00019397,2]
[373327842,1752947463141,-1136.8,0.00019397,2]
[373327843,1752947463152,-480.0,0.00019397,2]
[373327844,1752947463162,-686.18,0.00019397,2]
[373327845,1752947463172,-480.0,0.00019397,2]
[373327846,1752947463181,-1787.28,0.00019397,2]
[373327847,1752947463192,-364.72,0.00019397,2]
[373327848,1752947463202,-480.0,0.00019397,2]
[373327849,1752947463216,-480.0,0.00019397,2]
[373327850,1752947463230,-480.0,0.00019397,2]
[373327851,1752947463241,-613.3,0.00019397,2]
[373327852,1752947463251,-615.16,0.00019397,2]
[373327853,1752947463261,-480.0,0.00019397,2]
[373327854,1752947463271,-480.0,0.00019397,2]
[373327855,1752947463281,-480.0,0.00019397,2]
[373327856,1752947463290,-480.0,0.00019397,2]
[373327857,1752947463300,-590.52,0.00019397,2]
[373327858,1752947463311,-480.0,0.00019397,2]
[373327859,1752947463320,-1035.78,0.00019397,2]
[373327860,1752947463330,-1251.49,0.00019397,2]
[373327861,1752947463340,-480.0,0.00019397,2]
[373327862,1752947463350,-534.03,0.00019397,2]
[373327863,1752947463360,-480.0,0.00019397,2]
[373327864,1752947463371,-6709.99,0.00019397,2]
[373327865,1752947463381,-480.0,0.00019397,2]
[373327866,1752947463391,-480.0,0.00019397,2]
[373327867,1752947463401,-576.67,0.00019397,2]
[373327868,1752947463411,-298.33803926,0.00019397,2]
[373327869,1752947463420,-765.7,0.00019397,2]
[373327870,1752947463430,-1160.29,0.00019397,2]
[373327871,1752947463440,-480.0,0.00019397,2]
[373327872,1752947463450,-480.0,0.00019397,2]
[373327873,1752947463460,-161.74706714,0.00019406,2]
[373327874,1752947463470,-659.0,0.0001944,2]
[373327875,1752947463480,-500.0,0.00019452,2]
[373327876,1752947463492,-500.0,0.00019452,2]
[373327877,1752947463502,-500.0,0.00019452,2]
[373327878,1752947463513,-200.0,0.00019452,2]
[373327879,1752947463523,-150.0,0.00019452,2]
[373327880,1752947463532,-443.0,0.00019452,2]
[373327881,1752947463542,-500.0,0.00019452,2]
[373327882,1752947463552,-500.0,0.00019452,2]
[373327883,1752947463561,-500.0,0.00019452,2]
[373327884,1752947463571,-266.33933359,0.00019452,2]
[373327885,1752947463580,-150.0,0.00019452,2]
[373327886,1752947463590,-500.0,0.00019452,2]
[373327887,1752947463599,-3718.0,0.00019452,2]
[373327888,1752947463610,-150.0,0.00019452,2]
[373327889,1752947463620,-150.0,0.00019452,2]
[373327890,1752947463630,-500.0,0.00019452,2]
[373327891,1752947463639,-1381.0,0.00019452,2]
[373327892,1752947463649,-150.0,0.00019452,2]
[373327893,1752947463658,-500.0,0.00019452,2]
[373327894,1752947463668,-203.71399473,0.00019452,2]
[373327895,1752947463678,-500.0,0.00019452,2]
[373327896,1752947463688,-600.0,0.00019452,2]
[373327897,1752947463697,-503.49255766,0.00019452,2]